bitfinex-derivatives/quotes_BTCF0:USTF0_20250926
["timestamp","ask_amount","ask_price","bid_price","bid_amount"]
[1758896845157,2.14950493,109020.0,109010.0,0.01785]
[1758896846547,2.14950493,109020.0,109010.0,0.004]
[1758896846747,2.14950493,109020.0,109010.0,0.01785]
[1758896847753,2.15150493,109020.0,109010.0,0.01685]
[1758896848248,2.13850493,109020.0,109010.0,0.1055194]
[1758896848454,2.16350493,109020.0,109010.0,0.1095194]
[1758896848658,2.19563344,109020.0,109010.0,0.1095194]
[1758896848856,1.83771343,109020.0,109010.0,0.1095194]
[1758896849157,2.20163344,109020.0,109010.0,0.1095194]
[1758896849553,0.46569253,109020.0,109010.0,0.1327294]
[1758896849752,1.35125253,109020.0,109010.0,0.1337294]
[1758896849954,1.35125253,109020.0,109010.0,0.5337294]
[1758896850362,1.35125253,109020.0,109010.0,0.62545989]
[1758896851064,1.44291333,109020.0,109010.0,0.62545989]
[1758896851466,1.44291333,109020.0,109010.0,0.1105194]
[1758896852066,1.44291333,109020.0,109010.0,0.1333694]
[1758896854066,1.35125253,109020.0,109010.0,0.1333694]
[1758896854959,0.46769253,109020.0,109010.0,0.1333694]
[1758896855161,1.35201253,109020.0,109010.0,0.1333694]
[1758896855556,1.35189253,109020.0,109010.0,0.29050584]
[1758896855758,0.46769253,109020.0,109010.0,1.04842585]
[1758896855957,1.35201253,109020.0,109010.0,1.04842585]
[1758896856157,1.35201253,109020.0,109010.0,0.29050584]
[1758896856361,0.46769253,109020.0,109010.0,0.29050584]
[1758896856669,1.27992,109020.0,109010.0,1.04842585]
[1758896857165,1.27992,109020.0,109010.0,0.29050584]
[1758896857566,1.44447071,109020.0,109010.0,0.29050584]
[1758896857766,1.44447071,109020.0,109010.0,0.19877535]
[1758896857966,1.44447071,109020.0,109010.0,0.1333694]
[1758896858766,0.46868971,109020.0,109010.0,0.1333694]
[1758896858973,1.35372971,109020.0,109010.0,0.1333694]
[1758896859269,1.35412971,109020.0,109010.0,0.22509989]
[1758896859566,1.35420971,109020.0,109010.0,0.22509989]
[1758896859760,1.35420971,109020.0,109010.0,0.62509989]
[1758896859960,1.35420971,109020.0,109010.0,0.63425624]
[1758896860158,1.35404971,109020.0,109010.0,0.9830199]
[1758896860364,1.35404971,109020.0,109010.0,0.62509989]
[1758896860570,1.35404971,109020.0,109010.0,0.22509989]
[1758896864271,1.35404971,109020.0,109010.0,0.29050584]
[1758896864463,1.44571101,109020.0,109010.0,0.22509989]
[1758896864974,0.56035101,109020.0,109010.0,0.19877535]
[1758896865162,1.44403101,109020.0,109010.0,0.19877535]
[1758896865571,1.44403101,109020.0,109010.0,0.1333694]
[1758896865761,2.20195102,109020.0,109010.0,0.1105197]
[1758896865976,1.44403101,109020.0,109010.0,0.1333697]
[1758896866580,1.84403101,109020.0,109010.0,0.1105197]
[1758896866886,1.84403101,109020.0,109010.0,0.01885]
[1758896867085,1.84403101,109020.0,109010.0,0.1105197]
[1758896867980,1.84327101,109020.0,109010.0,0.1105197]
[1758896868879,2.20119102,109020.0,109010.0,0.01885]
[1758896869074,2.20119102,109020.0,109010.0,0.005]
[1758896869286,2.20119102,109020.0,109010.0,0.1097197]
[1758896869489,1.31827102,109020.0,109010.0,0.1097197]
[1758896869888,1.84299101,109020.0,109010.0,0.1325697]
[1758896871384,0.96035101,109020.0,109010.0,0.1325697]
[1758896871584,1.84287101,109020.0,109010.0,0.1325697]
[1758896872490,1.84215101,109020.0,109010.0,0.1097197]
[1758896872692,0.96035101,109020.0,109010.0,0.1097197]
[1758896872892,1.84203101,109020.0,109010.0,0.1097197]
[1758896873088,0.96035101,109020.0,109010.0,0.1325697]
[1758896873394,1.35044971,109020.0,109010.0,0.1325697]
[1758896873784,1.44211101,109020.0,109010.0,0.1325697]
[1758896874296,1.44211101,109020.0,109010.0,0.0409]
[1758896874484,1.44211101,109020.0,109010.0,0.1325697]
[1758896875392,1.44439101,109020.0,109010.0,0.1325697]
[1758896875587,0.56035101,109020.0,109010.0,0.1325697]
[1758896875792,1.44439101,109020.0,109010.0,0.0409]
[1758896875985,2.20231102,109020.0,109010.0,0.01805]
[1758896876689,0.0916697,109010.0,109000.0,0.10130595]
[1758896876893,1.3359497,109010.0,109000.0,0.1275781]
[1758896877492,0.4524697,109010.0,109000.0,0.1275781]
[1758896877688,1.3359497,109010.0,109000.0,0.1275781]
[1758896878202,1.3359497,109010.0,109000.0,0.1047281]
[1758896878495,1.3359497,109010.0,109000.0,0.1275781]
[1758896879297,1.3569497,109010.0,109000.0,0.1097281]
[1758896879489,1.3569497,109010.0,109000.0,0.1325781]
[1758896879896,1.26464,109010.0,109000.0,0.1325781]
[1758896880090,1.3563097,109010.0,109000.0,0.1325781]
[1758896880283,1.26464,109010.0,109000.0,0.1325781]
[1758896880688,1.3563097,109010.0,109000.0,0.1325781]
[1758896880888,0.3818,109010.0,109000.0,0.1325781]
[1758896881189,0.021,109010.0,109000.0,1.04764297]
[1758896881391,0.90336,109010.0,109000.0,0.68972296]
[1758896881696,0.90336,109010.0,109000.0,1.04764297]
[1758896881891,0.90324,109010.0,109000.0,0.68972296]
[1758896882196,0.90324,109010.0,109000.0,0.62431701]
[1758896884299,1.26404,109010.0,109000.0,0.62431701]
[1758896884597,0.90212,109010.0,109000.0,0.62431701]
[1758896885195,1.26292,109010.0,109000.0,0.62431701]
[1758896885395,1.71250971,109010.0,109000.0,0.17564628]
[1758896885696,1.71250971,109010.0,109000.0,0.01805]
[1758896885892,1.71250971,109010.0,109000.0,0.08396818]
[1758896886496,2.11250971,109010.0,109000.0,0.005]
[1758896886696,1.23138971,109010.0,109000.0,0.01884]
[1758896886897,2.11190971,109010.0,109000.0,0.01884]
[1758896888499,2.1307844,109010.0,109000.0,0.01884]
[1758896889295,1.2502644,109010.0,109000.0,0.1105181]
[1758896889496,2.1307444,109010.0,109000.0,0.1105181]
[1758896889793,1.77282439,109010.0,109000.0,0.01884]
[1758896890494,2.1307444,109010.0,109000.0,0.1105181]
[1758896891096,1.2502644,109010.0,109000.0,0.1105181]
[1758896891298,1.37286439,109010.0,109000.0,0.1105181]
[1758896891499,1.7307844,109010.0,109000.0,0.1105181]
[1758896892093,1.7307844,109010.0,109000.0,0.01884]
[1758896892294,1.7307844,109010.0,109000.0,0.1105181]
[1758896893197,1.7307844,109010.0,109000.0,0.01884]
[1758896893901,2.1307844,109010.0,109000.0,0.005]
[1758896894200,0.0916865,108990.0,108980.0,0.07976818]
[1758896894503,2.05172651,108990.0,108980.0,0.07976818]
[1758896894899,2.05172651,108990.0,108980.0,0.01385]
[1758896895893,1.60212,108990.0,108980.0,0.1286349]
[1758896896300,1.6938065,108990.0,108980.0,0.1286349]
[1758896896605,1.7038065,108990.0,108980.0,0.1336349]
[1758896897298,1.7048065,108990.0,108980.0,0.1326349]
[1758896897604,1.6948065,108990.0,108980.0,0.1286349]
[1758896897807,1.7158065,108990.0,108980.0,0.1346349]
[1758896898104,1.7158065,108990.0,108980.0,0.1115449]
[1758896899105,0.7436,108990.0,108980.0,0.1346349]
[1758896899305,1.62416,108990.0,108980.0,0.1346349]
[1758896899501,1.62416,108990.0,108980.0,0.62639064]
[1758896900005,1.7158465,108990.0,108980.0,0.62639064]
[1758896900204,1.7158465,108990.0,108980.0,0.5346349]
[1758896900603,0.7436,108990.0,108980.0,0.5346349]
[1758896901201,1.62416,108990.0,108980.0,0.5346349]
[1758896901407,0.7436,108990.0,108980.0,0.22639064]
[1758896901707,0.7436,108990.0,108980.0,0.62639064]
[1758896901708,1.6242,108990.0,108980.0,0.62639064]
[1758896902100,0.8352863,108990.0,108980.0,0.62639064]
[1758896902404,1.62416,108990.0,108980.0,0.62639064]
[1758896902602,0.3828,108990.0,108980.0,0.62639064]
[1758896903008,0.9026,108990.0,108980.0,0.98431065]
[1758896903305,1.2634,108990.0,108980.0,0.62639064]
[1758896903801,0.3828,108990.0,108980.0,0.62639064]
[1758896904108,1.2634,108990.0,108980.0,0.62639064]
[1758896904403,1.3550865,108990.0,108980.0,0.62639064]
[1758896904706,1.3550865,108990.0,108980.0,0.1346349]
[1758896905105,1.3550465,108990.0,108980.0,0.1346349]
[1758896905405,0.022,108990.0,108980.0,0.1346349]
[1758896905606,0.90256,108990.0,108980.0,0.1346349]
[1758896905799,1.26336,108990.0,108980.0,0.1346349]
[1758896906602,0.022,108990.0,108980.0,1.34511065]
[1758896906803,1e-07,108990.0,108980.0,1.34511065]
[1758896907005,0.83899469,109010.0,109000.0,0.1286081]
[1758896907703,0.83899469,109010.0,109000.0,0.22036384]
[1758896907904,0.37967469,109010.0,109000.0,0.22036384]
[1758896908106,0.37967469,109010.0,109000.0,0.62036384]
[1758896908299,1.31420971,109020.0,109010.0,0.1285997]
[1758896908900,1.31420971,109020.0,109010.0,0.22033861]
[1758896909708,1.40587101,109020.0,109010.0,0.22033861]
[1758896910297,1.40587101,109020.0,109010.0,0.1055097]
[1758896910699,1.40587101,109020.0,109010.0,0.01384]
[1758896910907,1.40687101,109020.0,109010.0,0.03284]
[1758896911409,1.80787101,109020.0,109010.0,0.03284]
[1758896911707,0.92735101,109020.0,109010.0,0.03284]
[1758896911911,1.80779101,109020.0,109010.0,0.019]
[1758896912212,1.80779101,109020.0,109010.0,0.03263]
[1758896912511,1.80779101,109020.0,109010.0,0.019]
[1758896912912,1.80779101,109020.0,109010.0,0.03263]
[1758896913412,1.80775101,109020.0,109010.0,0.03263]
[1758896914413,0.92735101,109020.0,109010.0,0.1242997]
[1758896914616,0.43568971,109020.0,109010.0,0.1470297]
[1758896914909,0.3628,109020.0,109010.0,0.63876019]
[1758896915111,1.24316,109020.0,109010.0,0.63876019]
[1758896915310,0.3628,109020.0,109010.0,0.63876019]
[1758896915516,1.24316,109020.0,109010.0,0.63876019]
[1758896916313,0.88236,109020.0,109010.0,0.63876019]
[1758896916508,0.002,109020.0,109010.0,0.63876019]
[1758896916700,0.002,109020.0,109010.0,0.64783618]
[1758896918012,0.002,109020.0,109010.0,0.60863618]
[1758896920615,0.002,109020.0,109010.0,0.24783618]
[1758896921317,0.002,109020.0,109010.0,0.60863618]
[1758896921514,0.002,109020.0,109010.0,0.23876019]
[1758896921910,0.002,109020.0,109010.0,0.60860407]
[1758896922226,0.002,109020.0,109010.0,1.00860407]
[1758896922609,0.002,109020.0,109010.0,1.3343617]
[1758896923516,1.21346183,109040.0,109030.0,0.1280134]
[1758896924210,1.21346183,109040.0,109030.0,0.21974389]
[1758896924812,1.30910683,109040.0,109030.0,0.22074389]
[1758896925016,1.30910683,109040.0,109030.0,0.1290134]
[1758896925221,1.21746183,109040.0,109030.0,0.1290134]
[1758896925512,1.23146183,109040.0,109030.0,0.1320134]
[1758896925918,0.45122183,109040.0,109030.0,0.1320134]
[1758896926112,1.33130183,109040.0,109030.0,0.1320134]
[1758896926521,1.42294683,109040.0,109030.0,0.1320134]
[1758896926712,1.82294683,109040.0,109030.0,0.1092834]
[1758896927813,1.42294683,109040.0,109030.0,0.1320134]
[1758896928015,1.42286683,109040.0,109030.0,0.1320134]
[1758896928217,1.42286683,109040.0,109030.0,0.1092834]
[1758896929019,1.82286683,109040.0,109030.0,0.01763]
[1758896929318,2.14862446,109040.0,109030.0,0.004]
[1758896930822,1.82278683,109040.0,109030.0,0.1092834]
[1758896931124,1.82278683,109040.0,109030.0,0.01763]
[1758896932228,1.82278683,109040.0,109030.0,0.1092834]
[1758896932522,1.82274683,109040.0,109030.0,0.1092834]
[1758896932719,1.82274683,109040.0,109030.0,0.01763]
[1758896933022,1.82274683,109040.0,109030.0,0.004]
[1758896933222,1.82274683,109040.0,109030.0,0.01763]
[1758896933519,2.14850446,109040.0,109030.0,0.1092834]
[1758896934622,2.14850446,109040.0,109030.0,0.01763]
[1758896935323,2.14850446,109040.0,109030.0,0.1092834]
[1758896935723,1.82274683,109040.0,109030.0,0.1092834]
[1758896936121,1.84606696,109040.0,109030.0,0.1092834]
[1758896936419,1.82274683,109040.0,109030.0,0.1092834]
[1758896936621,1.84606167,109040.0,109030.0,0.01763]
[1758896936824,1.84606167,109040.0,109030.0,0.1092834]
[1758896937122,1.82274683,109040.0,109030.0,0.1092834]
[1758896937424,1.82274683,109040.0,109030.0,0.1320134]
[1758896937624,1.42274683,109040.0,109030.0,0.01763]
[1758896939117,1.42274683,109040.0,109030.0,0.1320134]
[1758896939426,1.42266683,109040.0,109030.0,0.1320134]
[1758896939924,1.42266683,109040.0,109030.0,0.04036]
[1758896940124,1.42266683,109040.0,109030.0,0.1320134]
[1758896940419,0.54286683,109040.0,109030.0,0.1320134]
[1758896940725,0.45122183,109040.0,109030.0,0.5320134]
[1758896941022,1.33098183,109040.0,109030.0,0.5320134]
[1758896943526,0.89776,109040.0,109030.0,0.68940672]
[1758896943820,0.018,109040.0,109030.0,1.37596435]
[1758896944325,0.018,109040.0,109030.0,0.68940672]
[1758896944518,0.018,109040.0,109030.0,1.05020672]
[1758896945114,0.018,109040.0,109030.0,0.68940672]
[1758896945526,0.018,109040.0,109030.0,1.05020672]
[1758896947025,0.018,109040.0,109030.0,1.37596435]
[1758896947415,0.018,109040.0,109030.0,1.38496184]
[1758896949122,0.018,109040.0,109030.0,1.05920421]
[1758896950522,1.31513886,109060.0,109050.0,0.03633]
[1758896950924,1.31513886,109060.0,109050.0,0.1279668]
[1758896951124,1.31513886,109060.0,109050.0,0.61968046]
[1758896951125,0.87968,109060.0,109050.0,0.61968046]
[1758896951325,0.37918672,109070.0,109060.0,0.0916284]
[1758896951533,0.37918672,109070.0,109060.0,0.1279584]
[1758896952017,0.38850176,109070.0,109060.0,0.1279584]
[1758896952417,0.3608,109070.0,109060.0,0.1279584]
[1758896952721,0.4028,109070.0,109060.0,0.1329584]
[1758896953128,0.56690978,109070.0,109060.0,0.1329584]
[1758896953431,0.53990978,109070.0,109060.0,0.1309584]
[1758896953629,0.44828978,109070.0,109060.0,0.1309584]
[1758896953831,0.53990978,109070.0,109060.0,0.1309584]
[1758896954132,0.44828978,109070.0,109060.0,0.1309584]
[1758896955329,0.44028978,109070.0,109060.0,0.1299584]
[1758896955627,0.3678,109070.0,109060.0,0.62164684]
[1758896955831,0.007,109070.0,109060.0,0.62164684]
[1758896958535,0.09862,109070.0,109060.0,0.62164684]
[1758896958829,0.007,109070.0,109060.0,0.62164684]
[1758896961328,0.007,109070.0,109060.0,0.98244684]
[1758896962435,0.007,109070.0,109060.0,0.62164684]
[1758896962930,0.4594202,109070.0,109060.0,0.62164684]
[1758896963137,0.4594202,109070.0,109060.0,0.22164684]
[1758896963325,0.3678,109070.0,109060.0,0.22164684]
[1758896963726,0.007,109070.0,109060.0,0.22164684]
[1758896965436,0.007,109070.0,109060.0,0.94740447]
[1758896965834,0.006,109070.0,109060.0,0.94740447]
[1758896966029,0.36126,109080.0,109060.0,0.94540447]
[1758896966230,0.36126,109080.0,109070.0,0.03633]
[1758896966430,0.00046,109080.0,109070.0,0.03633]
[1758896966628,0.3608,109090.0,109080.0,0.0916121]
[1758896966829,0.3608,109110.0,109100.0,0.1279253]
[1758896967033,0.3608,109120.0,109110.0,0.1279169]
[1758896967249,0.4348176,109130.0,109120.0,0.1279086]
[1758896968738,0.4368176,109130.0,109120.0,0.1279086]
[1758896969840,0.4418176,109130.0,109120.0,0.1279086]
[1758896970939,0.0810176,109130.0,109120.0,0.1279086]
[1758896971138,0.007,109130.0,109120.0,0.1279086]
[1758896971337,0.3678,109130.0,109120.0,0.1279086]
[1758896972837,0.3678,109130.0,109120.0,0.21954662]
[1758896973041,0.007,109130.0,109120.0,0.93742578]
[1758896973436,0.007,109130.0,109120.0,0.58034662]
[1758896973640,0.007,109130.0,109120.0,0.93742578]
[1758896975436,0.007,109130.0,109120.0,2.21874578]
[1758896976037,0.007,109130.0,109120.0,2.21894578]
[1758896977547,0.007,109130.0,109120.0,2.21878578]
[1758896978348,0.007,109130.0,109120.0,2.21850578]
[1758896978850,0.007,109130.0,109120.0,1.33742578]
[1758896979051,0.007,109130.0,109120.0,1.86114662]
[1758896979351,0.005,109130.0,109120.0,2.21822578]
[1758896979553,0.93171869,109150.0,109140.0,0.1266918]
[1758896979754,0.84016519,109150.0,109140.0,0.1266918]
[1758896980154,0.93171869,109150.0,109140.0,0.1266918]
[1758896980753,1.217302,109150.0,109140.0,0.41227511]
[1758896981455,1.217302,109150.0,109140.0,0.1266918]
[1758896981656,1.220302,109150.0,109140.0,0.1266918]
[1758896982258,0.93471869,109150.0,109140.0,0.1266918]
[1758896982458,1.220302,109150.0,109140.0,0.1266918]
[1758896982761,1.232302,109150.0,109140.0,0.1266918]
[1758896983960,0.94671869,109150.0,109140.0,0.1266918]
[1758896984354,1.232302,109150.0,109140.0,0.1266918]
[1758896984559,1.1407485,109150.0,109140.0,0.1266918]
[1758896984967,1.2323019,109150.0,109140.0,0.1266918]
[1758896985468,1.2313019,109150.0,109140.0,0.1266918]
[1758896986265,1.1397485,109150.0,109140.0,0.1266918]
[1758896986465,1.1327485,109150.0,109140.0,0.1266918]
[1758896986671,1.224302,109150.0,109140.0,0.1266918]
[1758896987169,1.1327485,109150.0,109140.0,0.1266918]
[1758896987559,1.224302,109150.0,109140.0,0.1266918]
[1758896987872,0.93871869,109150.0,109140.0,0.1266918]
[1758896988071,1.1327485,109150.0,109140.0,0.1266918]
[1758896988274,0.7280685,109150.0,109140.0,0.41227511]
[1758896988473,1.6083885,109150.0,109140.0,0.41227511]
[1758896988675,0.7280685,109150.0,109140.0,0.41227511]
[1758896988867,1.6086285,109150.0,109140.0,0.41227511]
[1758896989672,1.24836,109150.0,109140.0,0.50389634]
[1758896990676,0.88756,109150.0,109140.0,0.50389634]
[1758896991170,0.007,109150.0,109140.0,0.50389634]
[1758896992168,0.005,109150.0,109140.0,0.50389634]
[1758896992472,0.005,109150.0,109140.0,1.55027965]
[1758896993372,0.87944,109160.0,109150.0,0.0915534]
[1758896993577,0.87944,109160.0,109150.0,0.41226671]
[1758896994075,0.87944,109160.0,109150.0,0.50388794]
[1758896994474,1.53488208,109160.0,109150.0,0.50388794]
[1758896994772,2.03142708,109160.0,109150.0,0.1266834]
[1758896995078,2.03342708,109160.0,109150.0,0.01307]
[1758896995264,2.05671856,109160.0,109150.0,0.1046235]
[1758896995467,1.77113525,109160.0,109150.0,0.1046235]
[1758896995667,2.05671856,109160.0,109150.0,0.1046235]
[1758896995864,2.05671856,109160.0,109150.0,0.01307]
[1758896995865,2.12376872,109160.0,109150.0,0.01307]
[1758896996073,0.0915535,109150.0,109140.0,0.1046252]
[1758896996373,0.73793681,109150.0,109140.0,0.1046252]
[1758896996674,0.73793681,109150.0,109130.0,0.1046403]
[1758896996675,0.0915619,109140.0,109130.0,0.1046403]
[1758896996974,1.92619926,109140.0,109130.0,0.1046403]
[1758896997272,0.38411074,109140.0,109130.0,0.1267003]
[1758896997578,1.64045585,109140.0,109130.0,0.1267003]
[1758896997778,1.92603916,109140.0,109130.0,0.1267003]
[1758896998071,1.35487254,109140.0,109130.0,0.1337003]
[1758896998284,1.64045585,109140.0,109130.0,0.1337003]
[1758896998867,1.54889405,109140.0,109130.0,0.1337003]
[1758896999873,1.54889405,109140.0,109130.0,0.1357003]
[1758897000373,1.64045585,109140.0,109130.0,0.1357003]
[1758897000675,2.32603916,109140.0,109130.0,0.009]
[1758897000872,2.32603916,109140.0,109110.0,0.1046569]
[1758897000873,0.0915786,109120.0,109110.0,0.1046569]
[1758897001072,1.03050356,109120.0,109110.0,0.1267169]
[1758897001280,1.91094356,109120.0,109110.0,0.1267169]
[1758897001480,2.00252216,109120.0,109110.0,0.1267169]
[1758897001679,2.00252216,109120.0,109110.0,0.1046569]
[1758897001976,0.0915861,109110.0,109100.0,0.013188]
[1758897002178,1.92799297,109110.0,109100.0,0.013348]
[1758897002373,1.92799297,109110.0,109100.0,0.1049425]
[1758897002574,1.92823297,109110.0,109100.0,0.1049425]
[1758897002779,1.71438696,109110.0,109100.0,0.013348]
[1758897002980,1.72336273,109110.0,109100.0,0.013348]
[1758897003276,1.72336273,109110.0,109100.0,0.000118]
[1758897003474,0.84200273,109110.0,109100.0,0.000118]
[1758897003678,1.72412273,109110.0,109100.0,0.013348]
[1758897003882,1.72312273,109110.0,109100.0,0.013348]
[1758897004475,0.02032,109100.0,109090.0,0.1272126]
[1758897004679,0.38112,109100.0,109090.0,0.1272126]
[1758897004981,1.2636,109100.0,109090.0,0.1272126]
[1758897005378,0.38121137,109100.0,109090.0,0.21886742]
[1758897005576,1.26577137,109100.0,109090.0,0.21886742]
[1758897005777,1.26577137,109100.0,109090.0,0.12726482]
[1758897005778,1.35736607,109100.0,109090.0,0.12726482]
[1758897006285,1.35936607,109100.0,109090.0,0.21886792]
[1758897006585,1.43346989,109100.0,109090.0,0.21886792]
[1758897007085,1.44846989,109100.0,109090.0,0.21986792]
[1758897007380,1.44846989,109100.0,109090.0,0.12826482]
[1758897007584,1.8123305,109100.0,109090.0,0.001]
[1758897007986,1.8054305,109100.0,109090.0,0.1281331]
[1758897008286,1.44814989,109100.0,109090.0,0.1281331]
[1758897008484,0.47231519,109100.0,109090.0,0.1281331]
[1758897008685,1.35711519,109100.0,109090.0,0.21979632]
[1758897010283,1.28301137,109100.0,109090.0,0.21979632]
[1758897010484,1.37460607,109100.0,109090.0,0.21979632]
[1758897010784,1.44679747,109100.0,109090.0,0.21979632]
[1758897011180,1.44679747,109100.0,109090.0,0.12819322]
[1758897011381,1.80897808,109100.0,109090.0,0.001]
[1758897011582,2.20897808,109100.0,109090.0,0.001]
[1758897012185,2.22753945,109100.0,109090.0,0.001]
[1758897012887,1.34273945,109100.0,109090.0,0.001]
[1758897013082,2.22837945,109100.0,109090.0,0.001]
[1758897013891,1.34273945,109100.0,109090.0,0.0926031]
[1758897014192,2.22821945,109100.0,109090.0,0.001]
[1758897017090,0.1136798,109070.0,109060.0,0.1264733]
[1758897017294,1.36065445,109070.0,109060.0,0.03485]
[1758897017593,1.36719445,109070.0,109060.0,0.1264782]
[1758897018193,1.72451506,109070.0,109060.0,0.1264782]
[1758897018687,0.48111445,109070.0,109060.0,0.1264782]
[1758897018883,1.26903465,109070.0,109060.0,0.1304782]
[1758897019090,1.26899465,109070.0,109060.0,0.62216664]
[1758897019386,1.26899465,109070.0,109060.0,0.62516664]
[1758897020200,0.38295465,109070.0,109060.0,0.62516664]
[1758897020398,1.24697465,109070.0,109060.0,0.62516664]
[1758897020591,0.88617465,109070.0,109060.0,0.62516664]
[1758897021094,1.24697465,109070.0,109060.0,0.62516664]
[1758897021395,1.36065445,109070.0,109060.0,0.62516664]
[1758897021590,1.36065445,109070.0,109060.0,0.1334782]
[1758897021591,1.71797506,109070.0,109060.0,0.1334782]
[1758897021786,1.71797506,109070.0,109060.0,0.04185]
[1758897022098,1.73376034,109070.0,109060.0,0.007]
[1758897022488,2.13376034,109070.0,109060.0,0.007]
[1758897022689,0.00486,109060.0,109030.0,0.1055607]
[1758897022991,0.00486,109060.0,109030.0,0.1271834]
[1758897022992,0.83182561,109040.0,109030.0,0.1271834]
[1758897023296,0.83182561,109040.0,109030.0,0.21887184]
[1758897023493,0.83182561,109040.0,109030.0,0.1271834]
[1758897023684,0.83194167,109040.0,109030.0,0.1271834]
[1758897023991,1.27001606,109040.0,109030.0,0.1341834]
[1758897025284,1.36166106,109040.0,109030.0,0.1341834]
[1758897025684,0.47462106,109040.0,109030.0,0.1541834]
[1758897025890,1.36118106,109040.0,109030.0,0.1541834]
[1758897026385,1.37218106,109040.0,109030.0,0.1351834]
[1758897026691,1.37218106,109040.0,109030.0,0.1281834]
[1758897026891,1.37218106,109040.0,109030.0,0.03653]
[1758897027292,1.37218106,109040.0,109030.0,0.1281834]
[1758897028096,0.48562106,109040.0,109030.0,0.1281834]
[1758897028403,1.37138106,109040.0,109030.0,0.1281834]
[1758897029403,1.73226167,109040.0,109030.0,0.001]
[1758897029700,2.13226167,109040.0,109030.0,0.001]
[1758897029901,0.1137302,109010.0,109000.0,0.03553]
[1758897030099,1.7212902,109010.0,109000.0,0.03553]
[1758897030398,1.7212902,109010.0,109000.0,0.21892236]
[1758897030897,0.38286,109010.0,109000.0,0.21892236]
[1758897031703,1.26902,109010.0,109000.0,0.21892236]
[1758897032003,0.38259,109030.0,109020.0,0.1264018]
[1758897032196,1.26847,109030.0,109020.0,0.1264018]
[1758897032702,0.38259,109030.0,109020.0,0.21814071]
[1758897032899,1.24648,109030.0,109020.0,0.61814071]
[1758897033498,0.001,109030.0,109020.0,0.61814071]
[1758897033804,0.003,109030.0,109020.0,0.98594071]
[1758897034001,0.38559,109030.0,109020.0,0.1334018]
[1758897034204,0.38559,109030.0,109020.0,0.62512388]
[1758897034402,0.88852,109030.0,109020.0,0.62512388]
[1758897034602,0.003,109030.0,109020.0,0.62512388]
[1758897035204,0.003,109030.0,109020.0,0.98592388]
[1758897035596,0.02379,109030.0,109020.0,0.22112388]
[1758897036303,0.02779,109030.0,109020.0,0.22012388]
[1758897036502,0.006,109030.0,109020.0,0.22012388]
[1758897037706,0.38859,109030.0,109020.0,0.22012388]
[1758897037903,0.006,109030.0,109020.0,0.22012388]
[1758897038302,0.3668,109030.0,109020.0,0.22012388]
[1758897039508,0.4802434,109030.0,109020.0,0.62012388]
[1758897039702,0.4802434,109030.0,109020.0,0.1284018]
[1758897040101,0.38859,109030.0,109020.0,0.1284018]
[1758897040302,0.4802434,109030.0,109020.0,0.03674]
[1758897040502,0.4838034,109030.0,109020.0,0.002]
[1758897040898,0.38859,109030.0,109020.0,0.1148018]
[1758897041106,1.27275,109030.0,109020.0,0.1284018]
[1758897041408,1.27263,109030.0,109020.0,0.1284018]
[1758897041605,0.3668,109030.0,109020.0,0.62012388]
[1758897041804,1.25092,109030.0,109020.0,0.22012388]
[1758897042305,0.89012,109030.0,109020.0,0.22012388]
[1758897043410,1.3643633,109030.0,109020.0,0.22012388]
[1758897044014,0.38859,109030.0,109020.0,0.22012388]
[1758897044211,1.27251,109030.0,109020.0,0.22012388]
[1758897044513,0.38859,109030.0,109020.0,0.22012388]
[1758897044711,0.8898,109030.0,109020.0,0.22012388]
[1758897045412,0.006,109030.0,109020.0,0.22012388]
[1758897046920,0.02779,109030.0,109020.0,0.22012388]
[1758897047418,0.006,109030.0,109020.0,0.22012388]
[1758897048420,0.02779,109030.0,109020.0,0.22012388]
[1758897049622,0.006,109030.0,109020.0,0.22012388]
[1758897049921,0.02779,109030.0,109020.0,0.22012388]
[1758897051817,0.006,109030.0,109020.0,0.22012388]
[1758897052126,0.006,109030.0,109020.0,0.58092388]
[1758897052327,0.006,109030.0,109020.0,0.22012388]
[1758897052718,0.02779,109030.0,109020.0,0.22012388]
[1758897054431,0.5194433,109030.0,109020.0,0.22012388]
[1758897054931,0.78859,109030.0,109020.0,0.22012388]
[1758897055232,0.8802433,109030.0,109020.0,0.22012388]
[1758897055833,0.78859,109030.0,109020.0,0.22012388]
[1758897056924,0.38859,109030.0,109020.0,0.22012388]
[1758897058134,1.27795,109030.0,109020.0,0.22012388]
[1758897058334,1.3696033,109030.0,109020.0,0.22012388]
[1758897058531,1.27795,109030.0,109020.0,0.22012388]
[1758897059029,1.7761433,109030.0,109020.0,0.002]
[1758897059731,1.7696033,109030.0,109020.0,0.1284017]
[1758897059936,1.3696033,109030.0,109020.0,0.1284017]
[1758897060131,0.38859,109030.0,109020.0,0.1284017]
[1758897060325,0.38859,109030.0,109020.0,0.22012378]
[1758897060526,1.27807,109030.0,109020.0,0.22012378]
[1758897060834,1.3697233,109030.0,109020.0,0.22012378]
[1758897062431,1.27795,109030.0,109020.0,0.22012378]
[1758897062633,1.3696033,109030.0,109020.0,0.22012378]
[1758897063341,1.7761433,109030.0,109020.0,0.002]
[1758897064041,1.7761433,109030.0,109020.0,0.0936617]
[1758897064432,1.7761433,109030.0,109020.0,0.002]
[1758897064835,1.7761433,109030.0,109020.0,0.0936617]
[1758897065144,0.8802433,109030.0,109020.0,0.1291417]
[1758897065337,1.7686033,109030.0,109020.0,0.1304817]
[1758897066343,1.7701633,109030.0,109020.0,0.1304817]
[1758897067839,1.7694433,109030.0,109020.0,0.1304817]
[1758897068740,1.7759833,109030.0,109020.0,0.002]
[1758897068945,1.79935198,109030.0,109020.0,0.002]
[1758897070144,1.79935198,109030.0,109020.0,0.001]
[1758897070448,1.80135198,109030.0,109020.0,0.001]
[1758897071135,0.1266346,109010.0,109000.0,0.1149984]
[1758897071446,1.7224946,109010.0,109000.0,0.1285884]
[1758897071948,1.73142961,109010.0,109000.0,0.1285884]
[1758897072446,1.73142961,109010.0,109000.0,0.1415884]
[1758897072646,1.63238,109010.0,109000.0,0.1415884]
[1758897072949,1.63238,109010.0,109000.0,0.1435884]
[1758897073548,1.72405,109010.0,109000.0,0.1435884]
[1758897074551,0.74378,109010.0,109000.0,0.1305884]
[1758897074746,1.63434,109010.0,109000.0,0.22832731]
[1758897075141,1.27354,109010.0,109000.0,0.22832731]
[1758897075541,0.91274,109010.0,109000.0,0.22832731]
[1758897076650,1.0044099,109010.0,109000.0,0.22832731]
[1758897076853,1.70371482,109010.0,109000.0,0.09973891]
[1758897077149,2.06461392,109010.0,109000.0,0.008]
[1758897077343,2.46461392,109010.0,109000.0,0.008]